fUSD/lending_fUSD_20240328
["ID","MTS","AMOUNT","RATE_DAILY","PERIOD"]
[320844271,1711620638172,-335.44322977,0.0005315,120]
[320844272,1711620638181,-500.0,0.0005315,120]
[320844273,1711620638190,-58.48458388,0.0005315,120]
[320844274,1711620638202,-441.51541612,0.0005315,120]
[320844275,1711620638211,-500.0,0.0005315,120]
[320844276,1711620638221,-58.23458392,0.0005315,120]
[320844295,1711620642697,-1239.04,0.00052769,120]
[320844296,1711620642706,-880.31,0.00052769,120]
[320844297,1711620642787,-353.36,0.00052769,120]
[320844298,1711620642799,-5.37,0.00052769,120]
[320844299,1711620642809,-1239.04,0.00052769,120]
[320844300,1711620642820,-1239.04,0.00053149,120]
[320844301,1711620642829,-1239.04,0.00053149,120]
[320844302,1711620642839,-441.76541608,0.0005315,120]
[320844303,1711620642848,-511.80119183,0.0005315,120]
[320844304,1711620642857,-500.0,0.0005315,120]
[320844305,1711620642867,-500.0,0.0005315,120]
[320844306,1711620642877,-500.0,0.0005315,120]
[320844307,1711620642886,-223.32476589,0.0005315,120]
[320844308,1711620642952,-354.31523411,0.0005315,120]
[320844309,1711620642963,-500.0,0.0005315,120]
[320844310,1711620642972,-500.0,0.0005315,120]
[320844311,1711620642982,-32.31060097,0.0005315,120]
[320844347,1711621527907,1000.0,0.0003,120]
[320844358,1711621831652,-155.0,0.00035599,2]
[320844359,1711621831662,-160.0,0.000356,2]
[320844360,1711621831671,-295.44814184,0.0004071,30]
[320844361,1711621831683,-289.45464035,0.0004071,30]
[320844362,1711621831695,-415.09721781,0.0004071,30]
[320844363,1711621831704,-621.77146932,0.00042,2]
[320844364,1711621831716,-1179.6499085,0.00042,2]
[320844365,1711621831728,-450.25,0.00042,2]
[320844366,1711621831752,-994.06607205,0.00042,2]
[320844367,1711621831764,-952.97254813,0.00042,2]
[320844368,1711621831775,-5641.50142211,0.00042,2]
[320844369,1711621831785,-264.46,0.0004918,2]
[320844370,1711621831794,-160.9070954,0.00049365,2]
[320844371,1711621831803,-158.834808,0.00049465,30]
[320844372,1711621831813,-158.63032545,0.00049612,30]
[320844373,1711621831822,-153.96410707,0.00050182,60]
[320844374,1711621831831,-801.0,0.000504,16]
[320844375,1711621831841,-349.23,0.00050454,2]
[320844376,1711621831851,-158.834808,0.00050898,60]
[320844377,1711621831860,-250.0,0.00051082,112]
[320844378,1711621831869,-3107.60841024,0.00051102,2]
[320844379,1711621831881,-14538.82676891,0.00051102,2]
[320844380,1711621831892,-6233.56482085,0.00051102,2]
[320844381,1711621831902,-226.84,0.00051133,120]
[320844382,1711621831911,-160.9070954,0.00051211,2]
[320844383,1711621831920,-323.67,0.00051216,2]
[320844384,1711621831930,-504.4569174,0.00051348,2]
[320844385,1711621831941,-185.7730826,0.00051348,2]
[320844386,1711621831950,-264.46,0.00051444,2]
[320844387,1711621831960,-150.0,0.00051467,2]
[320844388,1711621831969,-628.64043893,0.00051532,2]
[320844389,1711621831982,-1462.16446107,0.00051532,2]
[320844390,1711621831992,-250.0,0.0005157,120]
[320844391,1711621832001,-495.46,0.00051626,120]
[320844392,1711621832010,-190.28,0.00051887,2]
[320844393,1711621832020,-1000.0,0.00052115,120]
[320844395,1711621832029,-9523.65945383,0.00052354,4]
[320844396,1711621832050,-1240.14166456,0.00052354,4]
[320844397,1711621832059,-94.83209423,0.00052401,60]
[320844398,1711621832071,-60.84811876,0.00052401,60]
[320844399,1711621832081,-181.17801,0.0005262,62]
[320844402,1711621832091,-153.96410708,0.00052731,60]
[320844405,1711621832100,-830.08689098,0.00052759,2]
[320844408,1711621832112,-791.24822385,0.00052759,2]
[320844412,1711621832133,-1648.67536,0.00052759,2]
[320844416,1711621832145,-1619.951,0.00052759,2]
[320844420,1711621832162,-4426.6906596,0.00052759,2]
[320844423,1711621832172,-300.0,0.000528,19]
[320844425,1711621832181,-13207.91656162,0.000529,2]
[320844426,1711621832193,-692.82103838,0.000529,2]
[320844428,1711621832202,-501.23077451,0.000529,2]
[320844430,1711621832214,-1890.66071114,0.000529,2]
[320844432,1711621832223,-700.0,0.000529,19]
[320844433,1711621832233,-3723.1162,0.000529,2]
[320844435,1711621832242,-214.11697381,0.000529,2]
[320844437,1711621832251,-2500.0,0.00052995,2]
[320844438,1711621832261,-392.96735661,0.00052999,4]
[320844440,1711621832270,-7028.89931554,0.00053,53]
[320844442,1711621832281,-437.74214893,0.00053,53]
[320844445,1711621832314,-438.95863319,0.00053,53]
[320844447,1711621832325,-810.12234657,0.00053,53]
[320844449,1711621832337,-763.45799239,0.00053,53]
[320844451,1711621832358,-317.00743188,0.00053,53]
[320844453,1711621832370,-2682.5,0.00053,53]
[320844455,1711621832381,-1003.30335493,0.00053,53]
[320844457,1711621832392,-311.84172578,0.00053,53]
[320844473,1711621837752,-1983.29391928,0.00053,53]
[320844474,1711621837807,-15984.07828271,0.00053,53]
[320844475,1711621837866,-1103.80780873,0.00053,53]
[320844476,1711621837878,-714.60395022,0.00053,53]
[320844477,1711621837928,-1529.24775442,0.00053,53]
[320844478,1711621837940,-584.1374,0.00053,53]
[320844479,1711621837988,-563.26587408,0.00053,53]
[320844480,1711621838000,-63743.73206135,0.00053,53]
[320844481,1711621838009,-14250.61248131,0.00053,120]
[320844482,1711621838021,-3285.92021615,0.00053,120]
[320844483,1711621838033,-313.41130077,0.00053,120]
[320844525,1711621842623,-1240.99710267,0.00053,120]
[320844527,1711621842635,-2000.0,0.00053,120]
[320844529,1711621842646,-2000.0,0.00053,120]
[320844532,1711621842657,-2000.0,0.00053,120]
[320844534,1711621842669,-2000.0,0.00053,120]
[320844536,1711621842680,-1470.17775848,0.00053,20]
[320844539,1711621842691,-200.15597255,0.0005305,25]
[320844542,1711621842702,-163.87431336,0.0005305,14]
[320844546,1711621842714,-212.0,0.0005305,2]
[320844549,1711621842725,-151.63838329,0.00053057,56]
[320844551,1711621842738,-160.9070954,0.00053057,2]
[320844553,1711621842749,-9735.68039358,0.00053095,60]
[320844555,1711621842760,-207.81088865,0.0005314,2]
[320844557,1711621842771,-1133.86,0.00053144,120]
[320844558,1711621842782,-1014.28010624,0.00053146,30]
[320844559,1711621842793,-575.61052641,0.00053147,4]
[320844560,1711621842805,-10661.48994038,0.00053147,2]
[320844561,1711621842817,-155.0,0.00053148,2]
[320844562,1711621842828,-1020.26297848,0.00053149,60]
[320844563,1711621842840,-1000.0,0.00053149,120]
[320844564,1711621842851,-980.9,0.00053149,120]
[320844565,1711621842863,-980.9,0.00053149,120]
[320844566,1711621842874,-930.06,0.00053149,120]
[320844567,1711621842885,-930.06,0.00053149,120]
[320844568,1711621842897,-930.06,0.00053149,120]
[320844569,1711621842908,-232.398633,0.0005315,120]
[320844570,1711621842920,-500.0,0.0005315,120]
[320844571,1711621842932,-500.0,0.0005315,120]
[320844572,1711621842943,-500.0,0.0005315,120]
[320844573,1711621842955,-505.72335276,0.0005315,120]
[320844574,1711621842967,-500.0,0.0005315,120]
[320844575,1711621842996,-511.35959701,0.0005315,120]
[320844576,1711621843008,-500.0,0.0005315,120]
[320844577,1711621843021,-237.849433,0.0005315,120]
[320844578,1711621843032,-500.0,0.0005315,120]
[320844579,1711621843043,-500.0,0.0005315,120]
[320844580,1711621843054,-500.0,0.0005315,120]
[320844581,1711621843064,-533.23067823,0.0005315,120]
[320844582,1711621843073,-516.40949644,0.0005315,120]
[320844583,1711621843083,-500.0,0.0005315,120]
[320844584,1711621843093,-500.0,0.0005315,120]
[320844585,1711621843103,-500.0,0.0005315,120]
[320844586,1711621843113,-500.0,0.0005315,120]
[320844587,1711621843123,-500.0,0.0005315,120]
[320844588,1711621843132,-500.0,0.0005315,120]
[320844590,1711621843142,-500.0,0.0005315,120]
[320844591,1711621843152,-500.0,0.0005315,120]
[320844592,1711621843161,-500.0,0.0005315,120]
[320844593,1711621843171,-500.0,0.0005315,120]
[320844594,1711621843181,-500.0,0.0005315,120]
[320844595,1711621843191,-500.0,0.0005315,120]
[320844596,1711621843202,-518.39012891,0.0005315,120]
[320844597,1711621843212,-500.0,0.0005315,120]
[320844598,1711621843221,-500.0,0.0005315,120]
[320844599,1711621843231,-261.16013046,0.0005315,120]
[320844600,1711621843242,-500.0,0.0005315,120]
[320844604,1711621843691,-500.0,0.0005315,120]
[320844605,1711621843719,-532.94189554,0.0005315,120]
[320844606,1711621843740,-353.84064303,0.0005315,120]
[320844607,1711621843752,-500.0,0.0005315,120]
[320844608,1711621843761,-500.0,0.0005315,120]
[320844609,1711621843771,-628.02,0.0005315,120]
[320844610,1711621843781,-500.0,0.0005315,120]
[320844611,1711621843792,-500.0,0.0005315,120]
[320844612,1711621843801,-500.0,0.0005315,120]
[320844613,1711621843815,-423.87253032,0.0005315,120]
[320844614,1711621843824,-500.0,0.0005315,120]
[320844615,1711621843834,-500.0,0.0005315,120]
[320844616,1711621843844,-500.0,0.0005315,120]
[320844617,1711621843854,-500.0,0.0005315,120]
[320844618,1711621843863,-500.0,0.0005315,120]
[320844619,1711621843873,-500.0,0.0005315,120]
[320844620,1711621843882,-416.77765618,0.0005315,120]
[320844621,1711621843892,-2293.08,0.0005315,120]
[320844622,1711621843902,-500.0,0.0005315,120]
[320844623,1711621843911,-529.55135806,0.0005315,120]
[320844624,1711621843921,-500.0,0.0005315,120]
[320844625,1711621843930,-500.0,0.0005315,120]
[320844626,1711621843940,-518.14764766,0.0005315,120]
[320844627,1711621843950,-500.0,0.0005315,120]
[320844628,1711621843959,-334.01179803,0.0005315,120]
[320844629,1711621843991,-165.98820197,0.0005315,120]
[320844630,1711621844000,-500.0,0.0005315,120]
[320844631,1711621844010,-500.0,0.0005315,120]
[320844632,1711621844019,-500.0,0.0005315,120]
[320844633,1711621844029,-509.90948622,0.0005315,120]
[320844634,1711621844039,-500.0,0.0005315,120]
[320844635,1711621844049,-500.0,0.0005315,120]
[320844636,1711621844059,-512.40412837,0.0005315,120]
[320844637,1711621844068,-500.0,0.0005315,120]
[320844638,1711621844079,-1017.81,0.0005315,2]
[320844639,1711621844089,-500.0,0.0005315,120]
[320844640,1711621844098,-500.0,0.0005315,120]
[320844641,1711621844107,-500.0,0.0005315,120]
[320844642,1711621844117,-500.0,0.0005315,120]
[320844643,1711621844126,-506.55459358,0.0005315,120]
[320844644,1711621844135,-500.0,0.0005315,120]
[320844645,1711621844144,-500.0,0.0005315,120]
[320844646,1711621844154,-500.0,0.0005315,120]
[320844647,1711621844163,-504.36877425,0.0005315,120]
[320844648,1711621844172,-500.0,0.0005315,120]
[320844649,1711621844181,-500.0,0.0005315,120]
[320844650,1711621844190,-251.17816468,0.0005315,120]
[320844651,1711621844199,-500.0,0.0005315,120]
[320844652,1711621844208,-500.0,0.0005315,120]
[320844653,1711621844218,-500.0,0.0005315,120]
[320844654,1711621844227,-526.8958937,0.0005315,120]
[320844655,1711621844237,-500.0,0.0005315,120]
[320844656,1711621844247,-500.0,0.0005315,120]
[320844657,1711621844256,-500.0,0.0005315,120]
[320844658,1711621844265,-500.0,0.0005315,120]
[320844659,1711621844275,-518.4547409,0.0005315,120]
[320844660,1711621844284,-500.0,0.0005315,120]
[320844661,1711621844293,-500.0,0.0005315,120]
[320844662,1711621844302,-500.0,0.0005315,120]
[320844663,1711621844312,-520.03030427,0.0005315,120]
[320844664,1711621844321,-500.0,0.0005315,120]
[320844665,1711621844331,-500.0,0.0005315,120]
[320844666,1711621844340,-500.0,0.0005315,120]
[320844667,1711621844349,-532.55117573,0.0005315,120]
[320844668,1711621844358,-500.0,0.0005315,120]
[320844669,1711621844367,-500.0,0.0005315,120]
[320844670,1711621844377,-500.0,0.0005315,120]
[320844671,1711621844386,-500.0,0.0005315,120]
[320844672,1711621844395,-500.0,0.0005315,120]
[320844673,1711621844409,-500.0,0.0005315,120]
[320844674,1711621844419,-500.0,0.0005315,120]
[320844675,1711621844428,-500.0,0.0005315,120]
[320844676,1711621844438,-500.0,0.0005315,120]
[320844677,1711621844449,-500.0,0.0005315,120]
[320844678,1711621844458,-500.0,0.0005315,120]
[320844679,1711621844468,-513.97766728,0.0005315,120]
[320844680,1711621844477,-500.0,0.0005315,120]
[320844681,1711621844488,-514.02226113,0.0005315,120]
[320844682,1711621844498,-500.0,0.0005315,120]
[320844683,1711621844508,-500.0,0.0005315,120]
[320844684,1711621844518,-345.47526426,0.0005315,120]
[320844685,1711621844528,-500.0,0.0005315,120]
[320844686,1711621844538,-500.0,0.0005315,120]
[320844687,1711621844547,-500.0,0.0005315,120]
[320844688,1711621844557,-516.32314175,0.0005315,120]
[320844689,1711621844567,-500.0,0.0005315,120]
[320844690,1711621844577,-500.0,0.0005315,120]
[320844691,1711621844587,-514.25785719,0.0005315,120]
[320844692,1711621844596,-533.57986186,0.0005315,120]
[320844693,1711621844606,-500.0,0.0005315,120]
[320844694,1711621844616,-500.0,0.0005315,120]
[320844695,1711621844625,-532.19078473,0.0005315,120]
[320844696,1711621844634,-500.0,0.0005315,120]
[320844697,1711621844643,-500.0,0.0005315,120]
[320844698,1711621844652,-500.0,0.0005315,120]
[320844699,1711621844662,-500.0,0.0005315,120]
[320844700,1711621844671,-500.0,0.0005315,120]
[320844701,1711621844680,-500.0,0.0005315,120]
[320844702,1711621844690,-500.0,0.0005315,120]
[320844703,1711621844700,-153.66896126,0.0005315,120]
[320844704,1711621844710,-500.40424816,0.0005315,120]
[320844705,1711621844720,-512.51381486,0.0005315,120]
[320844706,1711621844729,-500.0,0.0005315,120]
[320844707,1711621844740,-511.84764689,0.0005315,120]
[320844708,1711621844749,-500.0,0.0005315,120]
[320844709,1711621844758,-500.0,0.0005315,120]
[320844710,1711621844767,-500.0,0.0005315,120]
[320844711,1711621844778,-511.46806858,0.0005315,120]
[320844712,1711621844788,-519.46244213,0.0005315,120]
[320844713,1711621844797,-500.0,0.0005315,120]
[320844714,1711621844807,-500.0,0.0005315,120]
[320844715,1711621844816,-500.0,0.0005315,120]
[320844716,1711621844825,-500.0,0.0005315,120]
[320844717,1711621844835,-500.0,0.0005315,120]
[320844718,1711621844844,-500.0,0.0005315,120]
[320844719,1711621844854,-500.0,0.0005315,120]
[320844720,1711621844863,-500.0,0.0005315,120]
[320844721,1711621844873,-500.0,0.0005315,120]
[320844722,1711621844881,-500.0,0.0005315,120]
[320844723,1711621844891,-500.0,0.0005315,120]
[320844724,1711621844900,-500.0,0.0005315,120]
[320844725,1711621844910,-500.0,0.0005315,120]
[320844726,1711621844919,-500.0,0.0005315,120]
[320844727,1711621844929,-500.0,0.0005315,120]
[320844728,1711621844938,-500.0,0.0005315,120]
[320844729,1711621844947,-593.83510103,0.0005315,120]
[320844730,1711621844957,-500.0,0.0005315,120]
[320844731,1711621844966,-500.0,0.0005315,120]
[320844732,1711621844976,-698.6,0.0005315,2]
[320844733,1711621844985,-500.0,0.0005315,120]
[320844734,1711621844996,-500.0,0.0005315,120]
[320844735,1711621845005,-518.82694312,0.0005315,120]
[320844736,1711621845015,-500.0,0.0005315,120]
[320844737,1711621845024,-500.0,0.0005315,120]
[320844738,1711621845034,-510.52326256,0.0005315,120]
[320844739,1711621845044,-255.98839136,0.0005315,120]
[320844740,1711621845053,-510.77726258,0.0005315,120]
[320844741,1711621845062,-500.0,0.0005315,120]
[320844742,1711621845072,-371.82350145,0.0005315,120]
[320844743,1711621845082,-500.0,0.0005315,120]
[320844744,1711621845092,-508.54350093,0.0005315,120]
[320844745,1711621845101,-500.0,0.0005315,120]
[320844746,1711621845110,-500.0,0.0005315,120]
[320844747,1711621845119,-500.0,0.0005315,120]
[320844748,1711621845128,-513.81586011,0.0005315,120]
[320844749,1711621845137,-500.0,0.0005315,120]
[320844750,1711621845147,-511.64753531,0.0005315,120]
[320844751,1711621845156,-500.0,0.0005315,120]
[320844752,1711621845166,-500.0,0.0005315,120]
[320844753,1711621845175,-500.0,0.0005315,120]
[320844754,1711621845185,-500.0,0.0005315,120]
[320844755,1711621845195,-500.0,0.0005315,120]
[320844756,1711621845204,-500.0,0.0005315,120]
[320844757,1711621845214,-515.44474561,0.0005315,120]
[320844758,1711621845223,-500.0,0.0005315,120]
[320844759,1711621845232,-500.0,0.0005315,120]
[320844760,1711621845243,-500.0,0.0005315,120]
[320844761,1711621845252,-500.0,0.0005315,120]
[320844762,1711621845262,-500.0,0.0005315,120]
[320844763,1711621845272,-500.0,0.0005315,120]
[320844764,1711621845282,-500.0,0.0005315,120]
[320844765,1711621845291,-500.0,0.0005315,120]
[320844766,1711621845301,-500.0,0.0005315,2]
[320844767,1711621845311,-500.0,0.0005315,120]
[320844768,1711621845320,-500.0,0.0005315,2]
[320844769,1711621845330,-500.0,0.0005315,2]
[320844770,1711621845339,-500.0,0.0005315,120]
[320844771,1711621845348,-500.0,0.0005315,120]
[320844772,1711621845358,-500.0,0.0005315,120]
[320844773,1711621845367,-500.0,0.0005315,120]
[320844774,1711621845376,-690.93,0.0005315,120]
[320844775,1711621845385,-500.0,0.0005315,120]
[320844776,1711621845395,-500.0,0.0005315,120]
[320844777,1711621845406,-654.32,0.0005315,120]
[320844778,1711621845417,-500.0,0.0005315,120]
[320844779,1711621845426,-500.0,0.0005315,120]
[320844780,1711621845435,-500.0,0.0005315,120]
[320844781,1711621845445,-582.52,0.0005315,120]
[320844782,1711621845455,-500.0,0.0005315,120]
[320844783,1711621845464,-653.63,0.0005315,120]
[320844784,1711621845473,-1014.49,0.0005315,120]
[320844785,1711621845484,-500.0,0.0005315,120]
[320844786,1711621845495,-500.0,0.0005315,120]
[320844787,1711621845504,-518.0,0.0005315,120]
[320844788,1711621845513,-500.0,0.0005315,120]
[320844789,1711621845522,-500.0,0.0005315,120]
[320844790,1711621845532,-500.0,0.0005315,120]
[320844791,1711621845542,-1003.13,0.0005315,120]
[320844792,1711621845551,-500.0,0.0005315,120]
[320844793,1711621845560,-514.00504328,0.0005315,120]
[320844794,1711621845570,-500.0,0.0005315,120]
[320844795,1711621845579,-846.53,0.0005315,120]
[320844796,1711621845590,-500.0,0.0005315,120]
[320844797,1711621845599,-566.43,0.0005315,120]
[320844798,1711621845611,-500.0,0.0005315,120]
[320844799,1711621845621,-500.0,0.0005315,120]
[320844800,1711621845632,-500.0,0.0005315,120]
[320844801,1711621845643,-1339.88,0.0005315,120]
[320844802,1711621845654,-500.0,0.0005315,120]
[320844803,1711621845663,-500.0,0.0005315,120]
[320844804,1711621845673,-738.69,0.0005315,120]
[320844805,1711621845682,-502.22,0.0005315,120]
[320844806,1711621845692,-1138.09,0.0005315,120]
[320844807,1711621845702,-500.0,0.0005315,120]
[320844808,1711621845712,-482.89401763,0.0005315,120]
[320844809,1711621845721,-500.0,0.0005315,120]
[320844810,1711621845731,-500.0,0.0005315,120]
[320844811,1711621845741,-500.0,0.0005315,120]
[320844812,1711621845752,-593.28,0.0005315,120]
[320844813,1711621845762,-1089.33,0.0005315,120]
[320844814,1711621845772,-500.0,0.0005315,120]
[320844815,1711621845781,-500.0,0.0005315,120]
[320844816,1711621845791,-500.0,0.0005315,60]
[320844817,1711621845801,-500.0,0.0005315,120]
[320844818,1711621845811,-500.0,0.0005315,120]
[320844819,1711621845821,-500.0,0.0005315,120]
[320844820,1711621845830,-500.0,0.0005315,120]
[320844821,1711621845840,-151.0,0.0005315,120]
[320844822,1711621845850,-151.0,0.0005315,120]
[320844823,1711621845859,-151.0,0.0005315,120]
[320844824,1711621845869,-151.0,0.0005315,120]
[320844825,1711621845879,-151.0,0.0005315,120]
[320844826,1711621845890,-500.0,0.0005315,120]
[320844827,1711621845899,-500.0,0.0005315,120]
[320844828,1711621845909,-500.0,0.0005315,120]
[320844829,1711621845919,-151.0,0.0005315,120]
[320844830,1711621845929,-500.0,0.0005315,120]
[320844831,1711621845938,-151.0,0.0005315,120]
[320844832,1711621845947,-151.0,0.0005315,120]
[320844833,1711621845956,-500.0,0.0005315,120]
[320844834,1711621845966,-151.0,0.0005315,120]
[320844835,1711621845980,-151.0,0.0005315,120]
[320844836,1711621845992,-500.0,0.0005315,120]
[320844837,1711621846001,-500.0,0.0005315,120]
[320844838,1711621846010,-534.29832429,0.0005315,120]
[320844839,1711621846019,-500.0,0.0005315,120]
[320844840,1711621846029,-504.43756448,0.0005315,120]
[320844841,1711621846038,-1151.38,0.0005315,120]
[320844842,1711621846047,-500.0,0.0005315,120]
[320844843,1711621846056,-500.0,0.0005315,120]
[320844844,1711621846065,-500.0,0.0005315,120]
[320844845,1711621846074,-500.0,0.0005315,120]
[320844846,1711621846084,-505.14037732,0.0005315,120]
[320844847,1711621846093,-818.21,0.0005315,120]
[320844848,1711621846105,-500.0,0.0005315,120]
[320844849,1711621846114,-500.0,0.0005315,120]
[320844850,1711621846123,-500.0,0.0005315,120]
[320844851,1711621846132,-500.0,0.0005315,120]
[320844852,1711621846141,-231.10619195,0.0005315,120]
[320844853,1711621846150,-500.0,0.0005315,120]
[320844854,1711621846160,-500.0,0.0005315,120]
[320844855,1711621846169,-500.0,0.0005315,120]
[320844856,1711621846178,-516.37955322,0.0005315,120]
[320844857,1711621846187,-688.4,0.0005315,120]
[320844858,1711621846197,-764.79,0.0005315,120]
[320844859,1711621846206,-544.37305899,0.0005315,120]
[320844860,1711621846215,-507.87789262,0.0005315,120]
[320844861,1711621846225,-507.46521884,0.0005315,120]
[320844862,1711621846234,-500.0,0.0005315,120]
[320844863,1711621846244,-509.10695556,0.0005315,120]
[320844864,1711621846254,-500.0,0.0005315,120]
[320844865,1711621846263,-500.0,0.0005315,120]
[320844866,1711621846273,-500.0,0.0005315,120]
[320844867,1711621846283,-500.0,0.0005315,120]
[320844868,1711621846293,-765.15,0.0005315,120]
[320844869,1711621846304,-616.46,0.0005315,120]
[320844870,1711621846314,-500.0,0.0005315,120]
[320844871,1711621846324,-500.0,0.0005315,120]
[320844872,1711621846334,-1065.4,0.0005315,120]
[320844873,1711621846343,-500.0,0.0005315,120]
[320844874,1711621846352,-669.29,0.0005315,120]
[320844875,1711621846361,-500.0,0.0005315,120]
[320844876,1711621846370,-500.0,0.0005315,120]
[320844877,1711621846379,-500.0,0.0005315,120]
[320844878,1711621846388,-580.35,0.0005315,120]
[320844879,1711621846398,-500.0,0.0005315,120]
[320844880,1711621846409,-500.0,0.0005315,120]
[320844881,1711621846420,-500.0,0.0005315,120]
[320844882,1711621846430,-500.0,0.0005315,120]
[320844884,1711621846439,-500.0,0.0005315,120]
[320844886,1711621846449,-1176.25,0.0005315,120]
[320844888,1711621846459,-629.56989036,0.0005315,120]
[320844890,1711621846468,-831.13,0.0005315,120]
[320844892,1711621846478,-591.11,0.0005315,120]
[320844893,1711621846487,-500.0,0.0005315,120]
[320844895,1711621846498,-500.0,0.0005315,120]
[320844897,1711621846508,-532.33,0.0005315,120]
[320844898,1711621846517,-500.0,0.0005315,120]
[320844900,1711621846527,-505.76,0.0005315,120]
[320844902,1711621846536,-500.0,0.0005315,120]
[320844904,1711621846545,-593.29,0.0005315,120]
[320844906,1711621846554,-509.58907257,0.0005315,120]
[320844908,1711621846564,-500.0,0.0005315,120]
[320844910,1711621846573,-836.25,0.0005315,120]
[320844911,1711621846583,-836.25,0.0005315,120]
[320844913,1711621846593,-836.25,0.0005315,120]
[320844915,1711621846603,-522.35043495,0.0005315,120]
[320844916,1711621846612,-500.0,0.0005315,120]
[320844917,1711621846622,-500.0,0.0005315,120]
[320844918,1711621846636,-735.49,0.0005315,120]
[320844919,1711621846645,-500.0,0.0005315,120]
[320844920,1711621846655,-500.0,0.0005315,120]
[320844921,1711621846665,-500.0,0.0005315,120]
[320844922,1711621846675,-500.0,0.0005315,120]
[320844923,1711621846685,-778.04,0.0005315,120]
[320844924,1711621846694,-500.0,0.0005315,120]
[320844925,1711621846703,-504.78980494,0.0005315,120]
[320844926,1711621846713,-500.0,0.0005315,120]
[320844927,1711621846722,-500.0,0.0005315,2]
[320844928,1711621846731,-500.0,0.0005315,120]
[320844929,1711621846741,-516.75,0.0005315,120]
[320844930,1711621846751,-500.0,0.0005315,120]
[320844931,1711621846760,-514.88998616,0.0005315,120]
[320844932,1711621846770,-500.0,0.0005315,120]
[320844933,1711621846780,-500.0,0.0005315,120]
[320844934,1711621846790,-500.0,0.0005315,120]
[320844935,1711621846801,-500.0,0.0005315,120]
[320844936,1711621846810,-500.0,0.0005315,120]
[320844937,1711621846822,-518.62,0.0005315,120]
[320844938,1711621846832,-500.0,0.0005315,120]
[320844939,1711621846841,-500.0,0.0005315,120]
[320844940,1711621846851,-628.33,0.0005315,120]
[320844941,1711621846862,-500.0,0.0005315,120]
[320844942,1711621846872,-723.14,0.0005315,120]
[320844943,1711621846882,-718.57,0.0005315,120]
[320844944,1711621846892,-500.0,0.0005315,120]
[320844945,1711621846903,-517.11480352,0.0005315,120]
[320844946,1711621846913,-500.0,0.0005315,120]
[320844947,1711621846922,-819.92,0.0005315,120]
[320844948,1711621846931,-610.06,0.0005315,120]
[320844949,1711621846940,-523.30388111,0.0005315,120]
[320844950,1711621846950,-500.0,0.0005315,120]
[320844951,1711621846959,-520.49612747,0.0005315,120]
[320844952,1711621846969,-517.53918415,0.0005315,120]
[320844953,1711621846978,-500.0,0.0005315,120]
[320844954,1711621846987,-500.0,0.0005315,120]
[320844955,1711621846997,-179.64917,0.0005315,120]
[320844956,1711621847006,-1225.89,0.0005315,120]
[320844957,1711621847015,-511.30157478,0.0005315,120]
[320844958,1711621847024,-500.0,0.0005315,120]
[320844959,1711621847034,-500.0,0.0005315,120]
[320844960,1711621847043,-500.0,0.0005315,120]
[320844961,1711621847053,-261.615864,0.0005315,120]